bitfinex/quotes_SOLUSD_20240623
["timestamp","ask_amount","ask_price","bid_price","bid_amount"]
[1719166881164,7.5804,131.92,131.88,100.0]
[1719166882061,7.581,131.91,131.88,100.0]
[1719166888075,7.5806,131.92,131.88,100.0]
[1719166890176,16.1827,131.95,131.87,15.272]
[1719166890355,45.0,131.94,131.87,15.272]
[1719166890681,7.5818,131.9,131.87,15.272]
[1719166891479,7.581,131.91,131.87,15.272]
[1719166892478,7.581,131.91,131.88,100.0]
[1719166894760,7.5815,131.9,131.88,100.0]
[1719166895281,7.5811,131.91,131.88,100.0]
[1719166895858,8.12515942,131.95,131.9,100.0]
[1719166896077,7.92931371,131.96,131.9,100.0]
[1719166896279,7.5793,131.94,131.9,100.0]
[1719166897393,7.58,131.93,131.9,100.0]
[1719166898355,7.5805,131.92,131.88,253.2523]
[1719166901885,7.5809,131.91,131.87,15.272]
[1719166902266,45.0,131.96,131.87,15.272]
[1719166902460,45.0,131.96,131.86,106.0644]
[1719166902779,7.5825,131.89,131.84,223.6253]
[1719166903160,7.5817,131.9,131.85,7.5841]
[1719166903680,7.5822,131.89,131.85,7.5841]
[1719166905087,7.5817,131.9,131.85,7.5841]
[1719166905782,7.5821,131.89,131.85,7.5841]
[1719166906667,7.5821,131.89,131.86,100.0]
[1719166908480,7.93064455,131.94,131.84,116.0409]
[1719166908481,7.5831,131.88,131.84,116.0409]
[1719166908672,7.93064455,131.94,131.84,116.0409]
[1719166908876,7.5835,131.87,131.84,16.0409]
[1719166909063,7.5835,131.87,131.83,6.5156]
[1719166911382,7.5839,131.86,131.83,6.5156]
[1719166911684,7.5834,131.87,131.83,6.5156]
[1719166911876,7.5834,131.87,131.83,14.101]
[1719166912388,7.5834,131.87,131.83,6.5156]
[1719166913188,7.5834,131.87,131.83,14.1009]
[1719166913787,7.5834,131.87,131.83,6.5156]
[1719166914170,7.5838,131.86,131.83,6.5156]
[1719166917079,7.5851,131.84,131.81,16.0409]
[1719166920192,7.5844,131.85,131.81,16.0409]
[1719166921191,7.5844,131.85,131.82,100.0]
[1719166921494,7.584,131.86,131.82,100.0]
[1719166922501,7.5845,131.85,131.82,100.0]
[1719166924294,22.6913,131.9,131.82,207.586]
[1719166924295,7.5839,131.86,131.82,207.586]
[1719166924598,7.5839,131.86,131.84,100.0]
[1719166925183,7.5839,131.86,131.82,100.0]
[1719166925884,7.5845,131.85,131.82,100.0]
[1719166931397,7.5851,131.84,131.81,116.0409]
[1719166931703,16.1945,131.9,131.81,116.0409]
[1719166931704,7.5858,131.83,131.81,100.0]
[1719166933890,7.5852,131.84,131.81,100.0]
[1719166934292,7.5846,131.85,131.81,100.0]
[1719166937100,7.5849,131.84,131.81,100.0]
[1719166937402,24.12763434,131.9,131.83,100.0]
[1719166937816,7.584,131.86,131.83,100.0]
[1719166938106,24.12763434,131.9,131.83,100.0]
[1719166938302,7.584,131.86,131.83,100.0]
[1719166942108,7.5844,131.85,131.83,100.0]
[1719166943306,7.5835,131.87,131.85,100.0]
[1719166943810,14.65689705,131.93,131.85,100.0]
[1719166943811,37.83756831,131.93,131.85,100.0]
[1719166943991,7.583,131.88,131.85,100.0]
[1719166944390,7.5832,131.87,131.85,100.0]
[1719166944794,7.5823,131.89,131.86,100.0]
[1719166945293,7.5823,131.89,131.87,100.0]
[1719166945494,7.5826,131.88,131.87,100.0]
[1719166946116,7.5832,131.87,131.85,100.0]
[1719166948397,7.5828,131.88,131.85,100.0]
[1719166949499,7.5823,131.89,131.85,100.0]
[1719166950023,7.5828,131.88,131.85,100.0]
[1719166952521,27.76444484,131.93,131.83,15.3748]
[1719166952705,45.0,131.92,131.82,7.5858]
[1719166953019,47.14175221,131.92,131.82,7.5858]
[1719166953221,7.5841,131.86,131.81,153.2564]
[1719166953817,7.5841,131.86,131.83,100.0]
[1719166954626,7.5841,131.86,131.82,7.5859]
[1719166955227,7.5841,131.86,131.81,153.2564]
[1719166955528,6.1744,131.88,131.8,115.7359]
[1719166955714,51.1744,131.88,131.8,115.7359]
[1719166956309,7.5856,131.83,131.79,145.67]
[1719166956607,7.5856,131.83,131.78,107.5882]
[1719166957132,7.5867,131.81,131.77,7.5888]
[1719166957354,7.5867,131.81,131.76,107.5893]
[1719166957828,7.5873,131.8,131.76,107.5893]
[1719166958341,7.5868,131.81,131.76,107.5893]
[1719166959233,7.5862,131.82,131.78,107.5883]
[1719166959614,7.5862,131.82,131.78,100.0]
[1719166961043,7.5867,131.81,131.78,100.0]
[1719166961350,7.5875,131.8,131.78,100.0]
[1719166963533,7.5869,131.81,131.78,100.0]
[1719166966858,7.93541681,131.86,131.8,100.0]
[1719166967023,7.5847,131.85,131.81,100.0]
[1719166967227,15.2286,131.87,131.82,100.0]
[1719166967836,7.5851,131.84,131.8,145.67]
[1719166969855,7.5851,131.84,131.8,153.2572]
[1719166970462,7.5846,131.85,131.8,153.2572]
[1719166971957,7.584,131.86,131.81,107.5863]
[1719166973438,7.5844,131.85,131.81,107.5863]
[1719166973655,7.5851,131.84,131.8,153.2572]
[1719166973968,7.5851,131.84,131.8,145.67]
[1719166975860,7.5851,131.84,131.8,153.2572]
[1719166976055,15.2286,131.87,131.78,115.7359]
[1719166976277,7.5857,131.83,131.78,123.3241]
[1719166976561,7.5862,131.82,131.78,123.3241]
[1719166976965,7.5862,131.82,131.78,107.5882]
[1719166977143,7.5857,131.83,131.78,107.5882]
[1719166980166,7.5857,131.83,131.79,7.5878]
[1719166980339,45.0,131.86,131.79,7.5878]
[1719166980544,7.5858,131.83,131.78,153.2582]
[1719166980756,45.0,131.86,131.79,107.5876]
[1719166980957,7.5858,131.83,131.79,100.0]
[1719166981660,7.5861,131.82,131.79,100.0]
[1719166983573,7.5861,131.82,131.78,145.67]
[1719166984770,7.5861,131.82,131.78,153.2583]
[1719166984942,7.5848,131.85,131.8,207.5872]
[1719166985142,23.16295539,131.87,131.8,207.5872]
[1719166985143,7.584,131.86,131.82,100.0]
[1719166985468,7.5838,131.86,131.82,107.5859]
[1719166986261,15.9923,131.9,131.84,107.5849]
[1719166986448,7.9330574,131.91,131.84,200.0]
[1719166986449,7.5823,131.89,131.84,200.0]
[1719166986765,7.5823,131.89,131.84,245.67]
[1719166987355,7.5823,131.89,131.84,253.2546]
[1719166988541,7.5823,131.89,131.85,1.51476328]
[1719166989269,7.5827,131.88,131.85,1.51476328]
[1719166989453,7.5827,131.88,131.84,253.2546]
[1719166989775,7.5827,131.88,131.84,245.67]
[1719166990470,7.5823,131.89,131.84,253.2545]
[1719166990672,7.5818,131.9,131.87,100.0]
[1719166990964,7.5808,131.92,131.87,153.253]
[1719166991177,7.5808,131.92,131.89,100.0]
[1719166991356,7.5815,131.9,131.89,100.0]
[1719166991670,15.096,131.97,131.87,100.0]
[1719166991671,7.5821,131.89,131.87,100.0]
[1719166992672,7.5823,131.89,131.85,22.6921]
[1719166993162,7.5817,131.9,131.86,200.0]
[1719166996580,7.92919017,131.96,131.88,100.0]
[1719166996758,45.0,131.95,131.88,100.0]
[1719166998986,45.0,131.95,131.85,22.6921]
[1719166999781,21.7367,131.94,131.84,245.67]
[1719166999961,45.0,131.93,131.82,100.0]
[1719167000163,7.5841,131.86,131.82,100.0]
[1719167000579,7.5841,131.86,131.81,176.0375]
[1719167001289,7.5844,131.85,131.81,76.0375]
[1719167001480,21.7367,131.89,131.81,45.67]
[1719167001658,45.0,131.88,131.81,45.67]
[1719167002385,7.5844,131.85,131.82,100.0]
[1719167009870,7.5849,131.84,131.82,100.0]
[1719167012294,7.5864,131.82,131.8,100.0]
[1719167014386,7.5858,131.83,131.8,100.0]
[1719167015285,52.93373848,131.88,131.8,100.0]
[1719167015595,7.5858,131.83,131.8,100.0]
[1719167017992,7.5852,131.84,131.8,100.0]
[1719167027508,7.5855,131.83,131.8,100.0]
[1719167031206,13.93182096,131.88,131.82,100.0]
[1719167031399,7.93373848,131.88,131.82,100.0]
[1719167031596,7.5847,131.85,131.82,100.0]
[1719167041020,7.5838,131.86,131.82,200.0]
[1719167041507,21.24712505,131.89,131.82,200.0]
[1719167041508,7.5843,131.85,131.82,200.0]
[1719167043206,7.93285452,131.9,131.84,200.0]
[1719167043527,276.9327,131.92,131.84,100.0]
[1719167043706,36.05854592,131.92,131.84,100.0]
[1719167044808,45.0,131.91,131.84,100.0]
[1719167045011,7.5839,131.86,131.84,100.0]
[1719167046528,45.0,131.91,131.82,52.1282]
[1719167046529,7.5844,131.85,131.82,52.1282]
[1719167048328,7.5844,131.85,131.82,6.4582]
[1719167050627,7.5852,131.84,131.8,100.0]
[1719167051311,7.5852,131.84,131.8,107.5871]
[1719167054120,7.5846,131.85,131.8,107.5871]
[1719167054727,7.5846,131.85,131.8,207.5871]
[1719167055408,7.5846,131.85,131.81,7.5866]
[1719167056733,7.5846,131.85,131.8,207.5869]
[1719167059839,7.585,131.84,131.8,207.5869]
[1719167074427,7.585,131.84,131.8,200.0]
[1719167077219,7.5855,131.83,131.8,200.0]
[1719167077548,7.5857,131.83,131.8,200.0]
[1719167078052,7.5851,131.84,131.8,200.0]
[1719167078235,7.5851,131.84,131.8,207.5872]
[1719167078533,7.5846,131.85,131.8,207.5872]
[1719167078734,21.66558837,131.88,131.78,269.5062]
[1719167079045,21.66558837,131.88,131.76,153.2592]
[1719167079046,7.587,131.81,131.76,153.2592]
[1719167079251,59.51499255,131.87,131.76,153.2592]
[1719167079431,7.587,131.81,131.76,153.2592]
[1719167080730,7.587,131.81,131.77,100.0]
[1719167081132,7.587,131.81,131.77,107.5888]
[1719167082257,7.5863,131.82,131.77,107.5888]
[1719167083053,15.6521,131.81,131.74,100.0]
[1719167083258,7.5892,131.77,131.73,45.67]
[1719167083556,7.5892,131.77,131.72,207.5913]
[1719167083557,7.5892,131.77,131.72,207.5916]
[1719167083763,15.6521,131.81,131.72,107.5916]
[1719167083936,7.5892,131.77,131.72,207.5916]
[1719167085159,15.6521,131.81,131.72,200.0]
[1719167085463,7.5899,131.76,131.72,200.0]
[1719167086932,7.5892,131.77,131.72,207.5917]
[1719167088744,45.0,131.8,131.72,100.0]
[1719167088942,7.5896,131.76,131.72,100.0]
[1719167089860,7.5892,131.77,131.72,107.5917]
[1719167090436,45.0,131.8,131.7,207.5928]
[1719167090437,7.5905,131.75,131.7,207.5928]
[1719167090641,7.5908,131.74,131.7,207.593]
[1719167090836,7.5908,131.74,131.7,200.0]
[1719167091040,7.5908,131.74,131.68,6.3029]
[1719167091041,7.592,131.72,131.68,206.3029]
[1719167091263,7.5915,131.73,131.68,207.5941]
[1719167092361,7.5915,131.73,131.68,207.594]
[1719167092567,7.5915,131.73,131.68,107.594]
[1719167093439,7.5915,131.73,131.68,7.594]
[1719167098469,7.5919,131.72,131.67,53.2644]
[1719167100458,7.5919,131.72,131.68,7.5941]
[1719167101179,7.5919,131.72,131.67,53.2644]
[1719167101673,7.5928,131.71,131.66,207.5951]
[1719167101848,7.5928,131.71,131.65,51.7581]
[1719167101849,16.6582,131.71,131.65,53.2657]
[1719167102871,7.5932,131.7,131.65,53.2657]
[1719167103378,7.5936,131.69,131.65,7.5957]
[1719167103751,7.5936,131.69,131.64,107.5961]
[1719167107355,7.5942,131.68,131.64,107.5961]
[1719167107671,7.5942,131.68,131.63,153.2669]
[1719167108686,23.2563,131.71,131.61,107.5977]
[1719167108687,16.6582,131.67,131.61,107.5977]
[1719167108878,16.6582,131.67,131.6,53.2685]
[1719167108879,7.5963,131.65,131.6,53.2685]
[1719167110003,7.5965,131.64,131.6,7.5985]
[1719167110194,7.5965,131.64,131.59,100.0]
[1719167110195,7.5965,131.64,131.59,7.5991]
[1719167110755,6.5981,131.66,131.57,100.0]
[1719167110983,7.5989,131.6,131.55,153.2711]
[1719167111166,7.5984,131.61,131.56,7.6009]
[1719167111371,7.599,131.6,131.55,153.2712]
[1719167111563,7.599,131.6,131.55,107.6012]
[1719167111761,23.90191144,131.65,131.54,7.6019]
[1719167111762,7.5994,131.59,131.54,7.6019]
[1719167111971,7.5994,131.59,131.55,7.6015]
[1719167112181,7.599,131.6,131.55,7.6015]
[1719167113065,7.5982,131.61,131.57,107.6004]
[1719167113493,7.5982,131.61,131.57,100.0]
[1719167114574,7.5977,131.62,131.57,207.6002]
[1719167116297,7.5982,131.61,131.57,107.6002]
[1719167116504,7.599,131.6,131.55,253.2712]
[1719167118801,7.599,131.6,131.56,7.601]
[1719167119006,7.5983,131.61,131.57,200.0]
[1719167119220,7.5979,131.62,131.59,100.0]
[1719167119910,7.5982,131.61,131.59,100.0]
[1719167120396,7.5995,131.59,131.55,200.0]
[1719167121109,7.5999,131.58,131.55,200.0]
[1719167121792,7.5996,131.59,131.55,200.0]
[1719167122602,7.5983,131.61,131.57,200.0]
[1719167123282,7.5983,131.61,131.58,0.58483392]
[1719167124213,7.5987,131.6,131.58,0.58483392]
[1719167124509,7.5994,131.59,131.57,100.0]
[1719167125782,7.599,131.6,131.57,200.0]
[1719167126611,7.5984,131.61,131.57,200.0]
[1719167126906,30.50341144,131.65,131.59,200.0]
[1719167127216,7.5972,131.63,131.59,200.0]
[1719167127583,7.5978,131.62,131.59,200.0]
[1719167130326,7.5973,131.63,131.59,200.0]
[1719167131504,7.5976,131.62,131.59,200.0]
[1719167131701,7.5982,131.61,131.59,100.0]
[1719167131932,7.5987,131.6,131.59,100.0]
[1719167132237,7.5987,131.6,131.57,245.71]
[1719167134119,7.5984,131.61,131.57,245.71]
[1719167135330,7.5984,131.61,131.57,253.3105]
[1719167135702,22.5858,131.65,131.53,22.1102]
[1719167135703,7.5967,131.64,131.59,207.5988]
[1719167137220,7.5967,131.64,131.6,0.72594824]
[1719167137529,7.597,131.63,131.6,0.72594824]
[1719167138542,7.597,131.63,131.59,200.0]
[1719167139531,22.5858,131.65,131.62,100.0]
[1719167139532,7.5962,131.65,131.62,100.0]
[1719167139738,29.50751921,131.68,131.62,100.0]
[1719167139739,7.5955,131.66,131.62,100.0]
[1719167140115,7.5955,131.66,131.62,107.5975]
[1719167140421,7.5949,131.67,131.63,100.0]
[1719167141141,7.5954,131.66,131.63,100.0]
[1719167141614,21.5893,131.68,131.63,145.71]
[1719167141615,7.5949,131.67,131.63,145.71]
[1719167143734,7.5954,131.66,131.63,145.71]
[1719167144950,7.595,131.67,131.63,145.71]
[1719167146656,7.595,131.67,131.63,153.3069]
[1719167151650,23.1785,131.68,131.63,153.3069]
[1719167151836,7.5942,131.68,131.63,153.3069]
[1719167152031,35.90812381,131.71,131.63,145.71]
[1719167152358,45.0,131.7,131.63,145.71]
[1719167153033,7.5954,131.66,131.63,145.71]
[1719167153449,7.5949,131.67,131.63,145.71]
[1719167154029,7.5942,131.68,131.63,145.71]
[1719167154461,7.5942,131.68,131.64,100.0]
[1719167155037,7.5942,131.68,131.64,107.5964]
[1719167155340,7.5942,131.68,131.64,100.0]
[1719167156455,7.5942,131.68,131.64,145.71]
[1719167157562,7.5947,131.67,131.64,100.0]
[1719167159961,21.8331,131.71,131.64,100.0]
[1719167160147,45.0,131.7,131.64,100.0]
[1719167161150,7.5948,131.67,131.64,100.0]
[1719167161761,45.0,131.7,131.62,121.4273]
[1719167161948,45.0,131.7,131.6,45.71]
[1719167161949,7.597,131.63,131.6,45.71]
[1719167162756,7.5967,131.64,131.6,45.71]
[1719167162961,7.5971,131.63,131.6,45.71]
[1719167163543,7.5967,131.64,131.6,45.71]
[1719167163761,7.5967,131.64,131.61,100.0]
[1719167165760,7.92008165,131.69,131.61,100.0]
[1719167165761,7.5954,131.66,131.61,145.71]
[1719167165966,7.5947,131.67,131.63,107.597]
[1719167166140,7.5947,131.67,131.63,100.0]
[1719167166639,21.8331,131.71,131.63,100.0]
[1719167166640,23.4208,131.71,131.66,7.5953]
[1719167166842,13.995,131.75,131.67,100.0]
[1719167166843,15.8281,131.74,131.67,100.0]
[1719167167548,7.5926,131.71,131.67,100.0]
[1719167168974,7.5921,131.72,131.67,207.5946]
[1719167169767,7.5921,131.72,131.67,214.3646]
[1719167170351,7.5925,131.71,131.67,200.0]
[1719167170685,15.8281,131.74,131.65,207.5956]
[1719167170961,45.0,131.73,131.65,207.5956]
[1719167171344,7.5931,131.7,131.65,207.5956]
[1719167172872,7.5931,131.7,131.65,253.3056]
[1719167173171,7.5921,131.72,131.67,100.0]
[1719167173372,7.5914,131.73,131.67,245.71]
[1719167173583,15.8281,131.74,131.7,7.5929]
[1719167173584,23.419,131.74,131.7,7.5929]
[1719167173749,7.5909,131.74,131.7,7.5929]
[1719167174262,7.5897,131.76,131.72,7.5917]
[1719167174462,15.3145,131.78,131.72,7.5917]
[1719167174692,7.589,131.77,131.72,14.3617]
[1719167175583,7.589,131.77,131.73,207.591]
[1719167176071,7.589,131.77,131.73,214.361]
[1719167176649,7.5886,131.78,131.73,214.361]
[1719167177052,13.9459625,131.81,131.73,214.361]
[1719167177276,7.5889,131.78,131.73,214.361]
[1719167177865,7.5879,131.79,131.74,8.73001971]
[1719167178476,7.5882,131.79,131.75,100.0]
[1719167179278,7.5882,131.79,131.75,200.0]
[1719167180481,15.3145,131.82,131.73,245.71]
[1719167180784,7.5901,131.75,131.7,53.3026]
[1719167181077,7.5891,131.77,131.73,100.0]
[1719167181657,7.5891,131.77,131.73,107.5912]
[1719167182655,7.5891,131.77,131.73,100.0]
[1719167183784,53.31624842,131.81,131.72,107.5916]
[1719167183961,53.31624842,131.81,131.71,153.3023]
[1719167184162,7.5897,131.76,131.72,8.16979287]
[1719167184377,7.5892,131.77,131.72,8.16979287]
[1719167184573,53.31624842,131.81,131.73,207.5911]
[1719167184574,7.5885,131.78,131.73,207.5911]
[1719167184763,7.588,131.79,131.75,100.0]
[1719167185286,7.588,131.79,131.75,200.0]
[1719167185973,7.588,131.79,131.75,207.59]
[1719167186378,7.588,131.79,131.76,0.4598551]
[1719167187363,7.5884,131.78,131.75,100.0]
[1719167187565,7.5884,131.78,131.75,200.0]
[1719167188176,7.5895,131.76,131.73,200.0]
[1719167188685,7.5892,131.77,131.73,200.0]
[1719167188859,7.5892,131.77,131.73,207.5911]
[1719167189963,7.5892,131.77,131.73,200.0]
[1719167192791,15.3145,131.82,131.75,100.0]
[1719167192967,7.5874,131.8,131.75,207.5898]
[1719167193985,7.5879,131.79,131.75,207.5898]
[1719167194181,7.5879,131.79,131.75,100.0]
[1719167197689,7.5874,131.8,131.75,207.5901]
[1719167199087,7.588,131.79,131.75,207.5901]
[1719167200784,7.588,131.79,131.75,200.0]
[1719167200969,7.5884,131.78,131.75,200.0]
[1719167201789,7.5884,131.78,131.75,100.0]
[1719167202094,7.5884,131.78,131.74,45.71]
[1719167202263,7.589,131.77,131.74,45.71]
[1719167202878,7.5897,131.76,131.73,100.0]
[1719167203188,7.5897,131.76,131.71,253.3019]
[1719167205194,7.5897,131.76,131.72,7.5918]
[1719167206885,7.5897,131.76,131.71,153.3023]
[1719167207094,7.5897,131.76,131.71,107.5923]
[1719167207489,7.5901,131.75,131.69,267.6316]
[1719167207787,7.5901,131.75,131.7,7.5928]
[1719167207977,7.5907,131.74,131.7,7.5928]
[1719167209391,7.5904,131.75,131.7,7.5928]
[1719167209770,7.5896,131.76,131.69,245.71]
[1719167210095,7.5896,131.76,131.71,7.5921]
[1719167210700,7.5902,131.75,131.71,7.5921]
[1719167210877,15.2969,131.77,131.72,7.5918]
[1719167210878,7.5896,131.76,131.72,7.5918]
[1719167212379,7.5896,131.76,131.71,107.5921]
[1719167212572,7.5901,131.75,131.71,107.5921]
[1719167213399,7.5901,131.75,131.71,100.0]
[1719167216001,7.5901,131.75,131.71,107.5922]
[1719167218685,7.5901,131.75,131.71,100.0]
[1719167218916,7.5913,131.73,131.69,207.5933]
[1719167219117,7.5921,131.72,131.68,7.5939]
[1719167219289,7.5921,131.72,131.67,207.5945]
[1719167219490,7.5921,131.72,131.67,107.5945]
[1719167219704,7.5927,131.71,131.66,7.595]
[1719167222791,7.5921,131.72,131.67,7.5946]
[1719167225805,7.5924,131.71,131.67,7.5946]
[1719167226818,15.3174,131.73,131.68,100.0]
[1719167227027,22.9091,131.73,131.69,7.5934]
[1719167227202,22.9091,131.73,131.68,107.5939]
[1719167227407,7.5919,131.72,131.68,100.0]
[1719167228520,7.5919,131.72,131.67,107.5944]
[1719167228724,7.5919,131.72,131.67,7.5944]
[1719167229413,7.5927,131.71,131.66,107.5951]
[1719167229614,15.3174,131.73,131.66,7.5951]
[1719167232807,15.3174,131.73,131.66,107.5951]
[1719167236131,15.3174,131.73,131.65,107.5958]
[1719167236331,45.0,131.72,131.65,107.5958]
[1719167236514,45.0,131.72,131.65,100.0]
[1719167236909,45.0,131.72,131.65,107.5957]
[1719167240038,7.5938,131.69,131.65,107.5957]
[1719167240740,7.5932,131.7,131.65,107.5957]
[1719167241039,7.5936,131.69,131.65,107.5957]
[1719167241239,7.5942,131.68,131.64,7.5963]
[1719167242017,45.0,131.72,131.63,100.0]
[1719167242225,7.5961,131.65,131.61,100.0]
[1719167242515,7.5955,131.66,131.62,100.0]
[1719167242717,7.5955,131.66,131.62,107.5975]
[1719167243329,7.595,131.67,131.62,107.5975]
[1719167247542,7.595,131.67,131.63,7.5969]
[1719167248339,7.91571367,131.69,131.64,100.0]
[1719167248518,22.5282,131.71,131.64,100.0]
[1719167249024,7.5933,131.7,131.64,100.0]
[1719167249241,7.5933,131.7,131.66,100.0]
[1719167249822,7.5933,131.7,131.67,1.06161884]
[1719167250038,30.1208,131.71,131.67,1.06161884]
[1719167250716,7.5932,131.7,131.67,1.06161884]
[1719167253125,7.5936,131.69,131.67,1.06161884]
[1719167254226,7.5936,131.69,131.66,100.0]
[1719167257256,22.5282,131.71,131.66,100.0]
[1719167257257,7.5932,131.7,131.66,100.0]
[1719167259255,15.50546053,131.73,131.69,100.0]
[1719167259554,7.5914,131.73,131.69,100.0]
[1719167260345,7.5919,131.72,131.7,0.84205035]
[1719167262057,7.5926,131.71,131.69,100.0]
[1719167262259,15.8443,131.74,131.69,100.0]
[1719167262565,7.5927,131.71,131.69,100.0]
[1719167263561,7.5927,131.71,131.67,200.0]
[1719167263862,7.5927,131.71,131.67,100.0]
[1719167265848,7.5927,131.71,131.67,107.5945]
[1719167266335,7.5933,131.7,131.65,200.0]
[1719167266536,7.5933,131.7,131.65,207.5953]
[1719167269562,45.0,131.73,131.65,7.5953]
[1719167269563,7.5936,131.69,131.65,7.5953]
[1719167269753,7.5942,131.68,131.63,200.0]
[1719167271051,7.5942,131.68,131.64,7.5963]
[1719167271245,23.4376,131.7,131.65,7.5957]
[1719167272949,23.4376,131.7,131.66,7.5952]
[1719167273181,15.8443,131.7,131.67,7.5947]
[1719167273677,15.8443,131.7,131.67,100.0]
[1719167274166,7.592,131.72,131.67,107.5947]
[1719167274470,7.5921,131.72,131.67,207.5944]
[1719167274669,7.5921,131.72,131.69,100.0]
[1719167275044,15.9319,131.74,131.69,100.0]
[1719167275364,23.523,131.74,131.69,100.0]
[1719167275570,7.5914,131.73,131.69,107.5933]
[1719167275958,7.5914,131.73,131.69,100.0]
[1719167276470,7.5919,131.72,131.69,100.0]
[1719167278663,7.5924,131.71,131.67,200.0]
[1719167278849,7.593,131.7,131.67,100.0]
[1719167279049,7.593,131.7,131.65,207.5956]
[1719167279277,7.5937,131.69,131.65,107.5956]
[1719167279484,7.5937,131.69,131.64,7.5962]
[1719167279685,15.9319,131.74,131.64,7.5962]
[1719167279686,7.5942,131.68,131.64,7.5962]
[1719167283252,7.5937,131.69,131.64,7.5962]
[1719167284176,7.5937,131.69,131.65,7.5958]
[1719167284878,23.5251,131.7,131.65,7.5958]
[1719167285884,7.5919,131.72,131.68,7.5938]
[1719167286386,23.5233,131.73,131.69,100.0]
[1719167286578,23.5233,131.73,131.69,107.5934]
[1719167286954,23.5233,131.73,131.7,1.51676047]
[1719167287464,7.5919,131.72,131.69,100.0]
[1719167289073,7.5926,131.71,131.67,100.0]
[1719167289581,7.5921,131.72,131.67,107.5945]
[1719167290259,7.5921,131.72,131.69,100.0]
[1719167290582,6.0511,131.75,131.69,107.5933]
[1719167291868,7.5916,131.73,131.69,100.0]
[1719167292382,23.83422366,131.76,131.69,100.0]
[1719167292383,23.83422366,131.76,131.71,100.0]
[1719167292565,7.5903,131.75,131.71,100.0]
[1719167293178,7.5903,131.75,131.71,107.5923]
[1719167293980,7.5903,131.75,131.71,100.0]
[1719167297471,7.5903,131.75,131.73,100.0]
[1719167297664,7.5897,131.76,131.73,100.0]
[1719167297871,7.5902,131.75,131.73,100.0]
[1719167303073,21.1656,131.79,131.73,100.0]
[1719167303281,7.5892,131.77,131.73,107.5909]
[1719167304883,7.5885,131.78,131.75,100.0]
[1719167305596,7.5884,131.78,131.75,100.0]
[1719167309483,22.8015,131.82,131.75,100.0]
[1719167309484,7.5881,131.79,131.75,100.0]
[1719167310404,7.5869,131.81,131.76,107.5892]
[1719167311183,7.5873,131.8,131.76,100.0]
[1719167312737,7.5878,131.79,131.76,100.0]
[1719167315380,7.5878,131.79,131.77,1.58432893]
[1719167315585,7.5878,131.79,131.77,3.09931508]
[1719167316985,7.5878,131.79,131.76,100.0]
[1719167320678,7.91070847,131.83,131.75,145.71]
[1719167320883,16.3491,131.82,131.75,100.0]
[1719167321110,45.0,131.81,131.75,100.0]
[1719167322106,7.5895,131.76,131.75,100.0]
[1719167322303,7.5891,131.77,131.75,100.0]